Cogmind - Beta 17 @@@ ROGUE MODE // 2026.07.15 @ 20:43:27 Player: Slow Result: Self-destructed Performance ------------- Evolutions (1) 500 Regions Visited (2) 400 Robots Destroyed (51) 255 Value Destroyed (1247) 1247 Prototype IDs (1) 20 Alien Tech Used (0) 0 Bonus (0) 0 TOTAL SCORE: 2422 Bonus ------- None Cogmind --------- Core Integrity 188/400 Matter 115/300 Energy 274/280 System Corruption 0% Temperature Cool (48) Movement Treading (240) Ox1 Location -9/Materials Parts ------- > --- POWER (1) -------- Heavy Ion Engine > --- PROPULSION (3) --- Improved Treads Armored Wheel > --- UTILITY (3) ------ Large Storage Unit Light Armor Plating > --- WEAPON (2) ------- Heavy Assault Rifle Shotgun > --- INVENTORY (15) --- Light Ion Engine Heat Sink Large Storage Unit Trap Scanner Sensor Array Sensor Array Particle Gun Autogun Light Cannon Light Cannon Mini Grenade Launcher Heavy Flail Peak State ------------ > --- POWER ------------ Heavy Ion Engine > --- PROPULSION ------- Light Treads Wheel Armored Wheel > --- UTILITY ---------- Large Storage Unit Trap Scanner Sensor Array > --- WEAPON ----------- Heavy Assault Rifle Heavy Flail > --- INVENTORY -------- Improved Treads Heat Sink Large Storage Unit Sensor Array Light Armor Plating Hardened Light Armor Plating Hardened Light Armor Plating Particle Gun Autogun Shotgun Light Cannon Light Cannon Mini Grenade Launcher [Rating: 19] Favorites ----------- Power Heavy Ion Engine Engine Heavy Ion Engine Propulsion Wheel Treads Light Treads Wheel Wheel Utility Large Storage Unit Device Sensor Array Storage Large Storage Unit Protection Hardened Light Armor Plating Weapon Light Cannon Energy Gun EM Pulse Gun Ballistic Gun Light Assault Rifle Ballistic Cannon Light Cannon Launcher Mini Grenade Launcher Special Weapon Mining Laser Impact Weapon Heavy Flail Build | -11 -10 -9 ------- Run | Yrd Mat Mat Slots Evolved 2 | . . 2 Power . | . . . Propulsion 1 | . . 1 Utility 1 | . . 1 Weapon . | . . . Parts Attached 37 | 8 7 22 Power 4 | 1 . 3 Engine 4 | 1 . 3 Core . | . . . Reactor . | . . . Propulsion 10 | 3 1 6 Treads 3 | 1 . 2 Leg . | . . . Wheel 7 | 2 1 4 Hover . | . . . Flight . | . . . Utility 12 | 2 3 7 Device 6 | 1 1 4 Storage 2 | 1 1 . Processor . | . . . Hackware . | . . . Protection 4 | . 1 3 Artifact . | . . . Weapon 11 | 2 3 6 Energy Gun 3 | . 1 2 Energy Cannon . | . . . Ballistic Gun 4 | 2 . 2 Ballistic Cannon 1 | . 1 . Launcher 1 | . . 1 Special Weapon 1 | . 1 . Impact Weapon 1 | . . 1 Slashing Weapon . | . . . Piercing Weapon . | . . . Special Melee Weapon . | . . . Unidentified Prototypes 1 | . . 1 Parts Lost 14 | . 1 13 Power 2 | . . 2 Propulsion 7 | . 1 6 Utility 3 | . . 3 Weapon 2 | . . 2 Highest Loss Streak 4 | . 1 4 To Critical Strikes . | . . . Average Backups 12 | 4 11 13 Power . | . 1 . Propulsion 2 | 2 3 2 Utility 5 | . 4 6 Weapon 3 | 1 2 3 Tool/Special . | . . . Unused Backups 12 | . 2 10 Power 6 | . 1 5 Propulsion 1 | . . 1 Utility 2 | . 1 1 Weapon 3 | . . 3 Tool/Special . | . . . Average Slot Usage (%) 96 | . 99 94 Engine 11 | . 14 10 Treads 11 | . 14 10 Wheel 16 | . 13 18 Device 13 | . 9 15 Storage 12 | . 14 11 Protection 5 | . 4 6 Energy Gun 6 | . 7 5 Ballistic Gun 9 | . 10 9 Ballistic Cannon 7 | . 10 5 Peak Build Rating 19 | 7 9 19 Average Rating 11 | 5 7 14 On Entrance 5 | . 7 9 Avg Prop Armor Cover (%) 9 | 12 10 8 Naked Turns . | . . . Heaviest Build 44 | 11 33 44 Greatest Support 22 | 20 20 22 Greatest Overweight (x) 3 | 1 3 3 Average Overweight (x) 1 | . 1 1 Largest Inventory Capacity 15 | 8 15 15 Average Capacity 13 | 7 12 15 Most Carried 15 | 8 14 15 Average Carried 12 | 4 11 13 Final Capacity 15 | 8 15 15 Final Carried 13 | 8 13 12 Class Distribution -------------------- 100% | Mutant Dominant Class ---------------- Mutant | -10/Materials Mutant | -9/Materials Resources | -11 -10 -9 ----------- Run | Yrd Mat Mat Matter Collected 1333 | 304 177 852 Remotely . | . . . Salvage Created 1522 | 164 286 1072 Parts 85 | 17 15 53 Haulers Intercepted 3 | . 1 2 Recyclers Shooed 1 | 1 . . Parts Field Recycled . | . . . Retrieved Matter . | . . . Parts Self-Destructed . | . . . Prevented . | . . . Parts Restored . | . . . Kills | -11 -10 -9 ------- Run | Yrd Mat Mat Combat Hostiles Destroyed 32 | . 4 28 Melee 1 | . . 1 Guns 16 | . 1 15 Cannons 11 | . 3 8 AOE 4 | . . 4 Classes Destroyed 13 | 2 4 7 Worker 1 | . . 1 Builder 1 | . . 1 Tunneler 4 | 4 . . Hauler 3 | . 1 2 Recycler 3 | 1 1 1 Mechanic 1 | . . 1 Operator 2 | . 2 . Watcher 4 | . 2 2 Swarmer 7 | . . 7 Grunt 20 | . 4 16 Brawler 1 | . . 1 Duelist 1 | . . 1 Sentry 3 | . . 3 Best Kill Streak 7 | 2 2 7 Combat Bots Only 7 | . 2 7 Max Kills in Single Turn 2 | 2 1 2 Gunslinging . | . . . Exploded 2 | . . 2 Melee 1 | . . 1 Uniques/NPCs Destroyed . | . . . Combat | -11 -10 -9 -------- Run | Yrd Mat Mat Hostile Shots Fired 189 | . 27 162 Missed 43 | . 8 35 Hits 146 | . 19 127 Melee 5 | . . 5 Projectile 141 | . 19 122 Critical Strikes 4 | . . 4 Damage Taken 2011 | . 267 1744 Core 269 | . 57 212 Absorbed by Shields . | . . . Regen/Repaired (Parts) 32 | . . 32 Core Remaining (%) 88 | 100 77 . Volleys Fired 160 | 17 36 107 Largest 2 | 2 2 2 Hottest 100 | 40 100 95 Shots Fired 298 | 34 65 199 Gun 208 | 34 38 136 Cannon 84 | . 26 58 Launcher 5 | . . 5 Special 1 | . 1 . Kinetic 230 | 34 54 142 Thermal 25 | . 1 24 Explosive 5 | . . 5 Electromagnetic 38 | . 10 28 Robot Hit Streak 8 | 4 8 6 Robot Miss Streak 6 | 3 2 6 Penetration Max . | . . . Secondary Targets 1 | . . 1 Max Gunslinging Chain 1 | . . 1 Shots Hit Robots 180 | 20 46 114 Core Hits 80 | 9 15 56 Critical Kills . | . . . Critical Parts Destroyed . | . . . Critical Strikes 4 | . 1 3 Burn 1 | . . 1 Blast 3 | . 1 2 Melee Attacks 6 | . . 6 Impact 6 | . . 6 Slashing . | . . . Piercing . | . . . Sneak Attacks . | . . . Combat Hostiles . | . . . Follow-up Attacks . | . . . Damage Inflicted 3310 | 190 677 2443 Guns 1726 | 190 308 1228 Cannons 931 | . 313 618 Explosions 600 | . 49 551 Melee 46 | . . 46 Ramming 7 | . 7 . Kinetic 2057 | 190 470 1397 Thermal 289 | . 49 240 Explosive 526 | . . 526 Electromagnetic 385 | . 151 234 Impact 46 | . . 46 Slashing . | . . . Piercing . | . . . Highest Corruption 1 | . 1 . Average Corruption 1 | . 1 . Corruption Purged . | . . . Corruption Blocked . | . . . Overload Shots . | . . . Overflow Damage 93 | . . 93 Projectiles . | . . . Explosions 93 | . . 93 Melee . | . . . Knockbacks 18 | . 10 8 Impact . | . . . Kinetic 15 | . 7 8 Secondary 3 | . 3 . Self-Inflicted Damage 114 | . . 114 Shots 2 | . . 2 Rammed 2 | . 2 . Targets Rammed 3 | . 3 . Kicked . | . . . Crushed 1 | . 1 . Highest Temperature 513 | . 247 513 Average Temperature 86 | . 89 85 Received Heat Transfer 894 | . 144 750 Effects 4 | . 1 3 Shutdowns 1 | . . 1 Energy Bleed 1 | . 1 . Interference 2 | . . 2 Siege Activations . | . . . Martial Activations . | . . . Shielding Activations . | . . . Robots Disrupted . | . . . Combat Hostiles . | . . . Robots Corrupted . | . . . Combat Hostiles . | . . . Parts Fried 2 | . 2 . Impact Corruptions . | . . . Robots Melted . | . . . Combat Hostiles . | . . . Parts Melted 1 | . . 1 Heat Transferred 705 | . 100 605 Parts Sabotaged . | . . . Parts Stolen . | . . . Parts Stripped . | . . . Power Chain Reactions 3 | . 2 1 Alert | -11 -10 -9 ------- Run | Yrd Mat Mat Maximum Alert Level 1 | . . 1 Low Security (%) 70 | 100 100 51 Level 1 29 | . . 48 Level 2 . | . . . Level 3 . | . . . Level 4 . | . . . Level 5 . | . . . High Security . | . . . Max Security . | . . . Peak Influence 327 | 10 40 327 Initial . | . . . Average 113 | . 5 182 Influence Increases 1130 | 25 160 945 Destroy 0b10 Robot/C 640 | . 80 560 Destroy 0b10 Robot/NC 95 | 25 30 40 Destroy Leader 144 | . 26 118 Successful Hack 44 | . 14 30 Disable Machine 90 | . . 90 Destroy Structure 72 | . 10 62 Lose Combat Pursuer 45 | . . 45 Influence Decreases 815 | 25 160 630 Time Decay 673 | 25 150 498 Lost Part 132 | . 10 122 Lost Ally 10 | . . 10 Squads Dispatched 6 | . 1 5 Investigation 1 | . . 1 Extermination . | . . . Reinforcement 5 | . 1 4 Assault . | . . . Garrison . | . . . Intercept . | . . . Searches Triggered . | . . . Construction Impeded . | . . . Haulers Reinforced . | . . . Active Scanning Responses . | . . . Cargo Convoy Interrupts . | . . . Stealth | -11 -10 -9 --------- Run | Yrd Mat Mat Distress Signals 4 | . . 4 Communications Jammed . | . . . Distress Signals . | . . . Times Spotted 63 | . 13 50 Peak Tracking Total 7 | . 2 7 Tactical Retreats 3 | . . 3 Traps | -11 -10 -9 ------- Run | Yrd Mat Mat Traps Triggered 2 | . 1 1 Indirectly . | . . . Trap Hack Attempts . | . . . Triggered . | . . . Disarmed . | . . . Reprogrammed . | . . . Reused . | . . . Traps Extracted . | . . . Installed . | . . . Triggered . | . . . Machines | -11 -10 -9 ---------- Run | Yrd Mat Mat Machines Disabled 6 | . . 6 Max in Single Turn 2 | . . 2 Machines Repaired . | . . . Machines Dismantled . | . . . Machines Sabotaged . | . . . Overloaded Fab Kills . | . . . Hacking | -11 -10 -9 --------- Run | Yrd Mat Mat Machines Accessed 12 | . 3 9 Terminals 8 | . 3 5 Fabricators . | . . . Repair Stations 1 | . . 1 Recycling Units 2 | . . 2 Scanalyzers 1 | . . 1 Garrison Access . | . . . Total Hacks 39 | . 4 35 Successful 23 | . 1 22 Failed 16 | . 3 13 Catastrophic 1 | . 1 . Database Lockouts . | . . . Manual 23 | . 4 19 Terminals 24 | . 4 20 Fabricators . | . . . Repair Stations 5 | . . 5 Recycling Units 2 | . . 2 Scanalyzers 8 | . . 8 Garrison Access . | . . . Terminal Hacks 5 | . . 5 Terminal Index 1 | . . 1 Locate Traps 2 | . . 2 Zone Layout 2 | . . 2 Fabricator Hacks . | . . . Repair Station Hacks 2 | . . 2 Scan Component 1 | . . 1 Repair 1 | . . 1 Recycling Unit Hacks 2 | . . 2 Report Inventory 2 | . . 2 Scanalyzer 8 | . . 8 Insert Component 4 | . . 4 Analyze 4 | . . 4 Garrison Access Hacks . | . . . Unauthorized Hacks 6 | . 1 5 Terminals 6 | . 1 5 Assimilate 1 | . . 1 Botnet 4 | . 1 3 Operators 1 | . . 1 Fabricators . | . . . Repair Stations . | . . . Recycling Units . | . . . Scanalyzers . | . . . Garrison Access . | . . . Data Cores Recovered 1 | . 1 . Used . | . . . Hacking Detections 11 | . 3 8 Full Trace Events 2 | . . 2 Feedback Events . | . . . Feedback Blocked . | . . . Robot Schematics Acquired . | . . . Robots Built . | . . . Authchips . | . . . Time . | . . . Total Robot Build Rating . | . . . Part Schematics Acquired 3 | . . 3 Parts Built . | . . . Authchips . | . . . Time . | . . . Total Part Build Rating . | . . . Part Studies Acquired . | . . . Parts Repaired 1 | . . 1 Time 13 | . . 13 Parts Recycled . | . . . Recycled Matter . | . . . Retrieved Matter . | . . . Retrieved Components . | . . . Parts Scanalyzed 4 | . . 4 Part Schematics Acquired 3 | . . 3 Parts Damaged . | . . . Bothacking | -11 -10 -9 ------------ Run | Yrd Mat Mat Used RIF Installer . | . . . Robots Hacked . | . . . Non-combat . | . . . Combat . | . . . Robot Hacks Applied . | . . . Relay Couplers Released . | . . . Fabnet Peak Effective % . | . . . Robots Rewired . | . . . Allies Hacked . | . . . Hacks Repelled . | . . . Allies | -11 -10 -9 -------- Run | Yrd Mat Mat Total Allies 1 | . . 1 Largest Group . | . . . Highest-Rated Group . | . . . Highest-Rated Ally . | . . . Total Orders . | . . . Ally Attacks . | . . . Total Damage . | . . . Kills . | . . . Allies Corrupted . | . . . Allies Melted . | . . . Intel | -11 -10 -9 ------- Run | Yrd Mat Mat Active Infowar (turns) 1667 | 4 509 1154 Sensors 1619 | . 472 1147 Structural 518 | . . 518 Traps 296 | . . 296 Seismic 41 | 4 37 . Robot Analysis Total . | . . . Derelict Logs Recovered . | . . . Drone Launches . | . . . Drone Recoveries . | . . . Exploration | -11 -10 -9 ------------- Run | Yrd Mat Mat Turns Passed 2330 | 127 779 1424 Spaces Moved 1250 | 67 498 685 Core 1 | 1 . . Treads 240 | 9 70 161 Legs . | . . . Wheels 1009 | 57 428 524 Hover . | . . . Flight . | . . . Fastest Speed 50 | 50 80 95 Average Speed 128 | 93 125 133 Slowest Speed 240 | 160 240 240 Overloaded Moves . | . . . Propulsion Burnouts . | . . . Robots Hopped . | . . . Potential Cave-ins . | . . . Cave-ins Triggered . | . . . Exploration Rate (%) 47 | 4 73 66 Regions Visited 2 Branch Regions . Pre-discovered Areas . | . . . Known Exits Taken . | . . . Unknown Exits Taken 2 | 1 1 . Scrap Searched . | . . . Spaces Dug 6 | . 1 5 Terrain Destroyed 82 | . 10 72 Melee 5 | . . 5 Projectile 1 | . 1 . AOE 76 | . 9 67 Terrain Rammed . | . . . Walls Destroyed . | . . . Machines Disabled . | . . . Actions | -11 -10 -9 --------- Run | Yrd Mat Mat Total 1665 | 102 585 978 Wait 122 | . 22 100 Move 1248 | 66 497 685 Hop . | . . . Pick Up 38 | 9 10 19 Fast Attach 15 | 7 1 7 Attach 13 | . 2 11 Detach . | . . . Swap 42 | 1 8 33 Drop 18 | 2 6 10 Fire 160 | 17 36 107 Melee 6 | . . 6 Ram . | . . . Kick . | . . . Crush 3 | . 3 . Escape Stasis . | . . . Rewire . | . . . Trap . | . . . Miscellaneous . | . . . Route ------- -11/Scrapyard -10/Materials (discovered 3 exits: *Mat x2 / [*Min]) -9/Materials (discovered 2 exits: [*Mat] / [*Min]) History --------- Turn | Location | Event 10 | -11/Scrapyard | Discovered new exit (range 16) 128 | -11/Scrapyard | Entered Materials 302 | -10/Materials | Build established: Mutant 391 | -10/Materials | Discovered new exit (range 8) 818 | -10/Materials | Discovered new exit (range 15) 874 | -10/Materials | Discovered new exit (range 6) 907 | -10/Materials | Entered another Materials area 907 | -9/Materials | Evolved 2 slots: Propulsion x1, Utility x1 1431 | -9/Materials | Repaired Wheel 1602 | -9/Materials | Discovered new exit (range 12) 1673 | -9/Materials | Destroyed 7 combat bots 1728 | -9/Materials | Lost 4 parts (1p2n1u) 2179 | -9/Materials | Discovered new exit (range 12) 2326 | -9/Materials | Core integrity fell below 50% 2331 | -9/Materials | Self-destructed Last Messages --------------- 02310_ Hrd. Light Armor Plating destroyed. 02316_ Y-45 Defender destroyed. 02316_ U-05 Engineer destroyed. 02317_ Acquired 52 matter. 02318_ O-16 Technician uses terminal to summon reinforcements. 02318_ ALERT: Hostiles spotted, dispatching reinforcements to Terminal M004. 02318_ O-16 Technician locks terminal. 02323_ ALERT: Hostiles spotted, dispatching reinforcements to Terminal M005. 02325_ Lgt. Treads destroyed. 02325_ Critical hit (Burn: +37). 02328_ Nuclear Reactor explodes. 02328_ M-13 Machinist destroyed. 02328_ Destroyed Hover Unit. 02328_ Hrd. Light Armor Plating destroyed. 02328_ Destroyed Hrd. Light Armor Plating. 02328_ Terminal disabled. 02328_ Critical hit (Burn: +37). Map ----- +----------------------------------------------------+ | ??????????????????????????#!!**==#?????????????? | | ??????????????????????????#!!**==#?????????????? | | ????????????????????####### #?????????????? | | ?????????????######## # #?????????????? | | ?????????????# #???##########? | | ?????????????# < %T #???# #? | | ?????????????# #???# ## | | ?????????????# #### #####+####?# ## | | ?????????????# #??## ## ### ## | | ?????????????# #???# ## [ = "##]]] ## | | ?????????????# #???# ## ## ] ## | | ?????????????# #???# ## ###] ## | | ?????????????# #???# + #?# ## | | ?????????????# #???# ## #?# ## | | ?????????????# #???# ## #?#####+##### | | ?????????????# #???##r### #???## | | ?????????????# #????# #?# #???#T ^ ^ | | ?????????????# #????# #?##########???## """ | | ?????????????# #????# #?????###???????# """ | | ?????????????# #????# #?????# #######?# """ | | ?????????????# #????# #?????# ?# | | ?????????????# ?????# #???????????????#! | | ?????????????# ?????# #??###?????? ??# #### | | ?????????????# ????## ## ## !* ?# # | | ?????????????# ????# ""??# # | | ?????????????# ????# @ ! ""??# + ! | | ?????????????# ???# =! Y ""??# # | | ?????????????? ???# u ?# # | | ????????????????????# % ###+##??# # | | ???????????????????? " = #?????? # | | ????????????o??????## ! ##????? #### | | ????????????????????# ] Y ???? #??? | | ????????????????????#! ###?? ########??? | | ????????????????????# !##??? ???????????? | | ????????????????????#######o###??# ????????????? | | ???????????????????????????u ????#?????????????? | | ??????????????????????????? ??????????????????? | | ???????????????????????????? ?????????????????? | | ???????????????????????????? ?????????????????? | | ???????????????????????????????????????????????? | | ???????????????????????????????????????????????? | | ???????????????????????????????????????????????? | | ??????????????????????????????????????????????" | | ??????????????????????????????????????????????" | | ????????????????????????????????????????????? | | ????????????????????????????????????????????? | | ???????????????????????????????????????????? | | ????????????????????????????????????????????## | | ????????????????????????????????????????????#### | | ???????????????????????????????????????????????# | +----------------------------------------------------+ Best States ------------- Heat Dissipation 38 Energy Generation 14 Energy Capacity 280 Matter Stores 300 Matter Capacity 300 Sight Range 16 Robot Scan Range 14 Terrain Scan Density 10 Armor Coverage 300 Evasion (%) 44 Recoil Reduction 1 Item Schematics ----------------- Sensor Array | -9/Materials | Scanalyzed Wheel | -9/Materials | Scanalyzed Structural Scanner | -9/Materials | Scanalyzed Robot Schematics ------------------ None Fabricated ------------ Nothing Repaired ---------- Wheel | 20% | -9/Materials Studied --------- None Alien Tech Used ----------------- None Achievements -------------- Well Done Challenges ------------ None Game ------ Seed ShockAdvancedPenetrator Manual? 0 Play Time 00:57:38 Cumulative 36.7 hours Start 2026.07.10 @ 21:19:14 End 2026.07.15 @ 20:43:27 Sessions 5 Manual Loads 0 Difficulty Rogue Special Mode None Game No. 20 Rogue 20 Adventurer 0 Explorer 0 Win Type - Total 0 Types 0/0/0/0/0/0/0/0/0/0 Lore% 11 Gallery% 25 Achievement% 18 Wizard Run 0 Options --------- Layout 1 ASCII 0 Keyboard 0 Movement Numpad Keybinds 0 Fullscreen 1 Font 24/Smallcaps Map View 50x35 Zoom Use 0% Tactical HUD 1 Map Filters NONE Filters NONE Steam 1 RUN: 67e2c9a9-4887-4560-9c82-049529992dd3